[Event "*** Titled Tuesday Blitz"]
[Site "Chess.com"]
[Date "2021.03.02"]
[Round "5"]
[White "shrek4life02"]
[Black "Sanan_Sjugirov"]
[Result "1-0"]
[WhiteElo "2742"]
[BlackElo "2918"]
[TimeControl "180+1"]
[EndTime "10:56:16 PST"]
[Termination "shrek4life02 won by resignation"]

1. d4 {[%clk 0:03:00.2]} 1... Nf6 {[%clk 0:02:59.6]} 2. Bf4 {[%clk 0:03:00.4]}
2... e6 {[%clk 0:02:55.9]} 3. Nf3 {[%clk 0:02:59.9]} 3... c5 {[%clk 0:02:54.1]}
4. e3 {[%clk 0:03:00.4]} 4... cxd4 {[%clk 0:02:54.4]} 5. exd4 {[%clk 0:03:01.3]}
5... b6 {[%clk 0:02:54.6]} 6. Be2 {[%clk 0:03:01.1]} 6... Bb7 {[%clk 0:02:54.7]}
7. h3 {[%clk 0:03:01.9]} 7... Be7 {[%clk 0:02:54.9]} 8. O-O {[%clk 0:03:02.4]}
8... O-O {[%clk 0:02:55.1]} 9. c3 {[%clk 0:03:02.8]} 9... d6 {[%clk 0:02:55.3]}
10. Bh2 {[%clk 0:03:02.8]} 10... Nbd7 {[%clk 0:02:55.2]} 11. Nbd2 {[%clk
0:03:03.6]} 11... Re8 {[%clk 0:02:55.1]} 12. a4 {[%clk 0:03:04.2]} 12... a6
{[%clk 0:02:55.2]} 13. Nc4 {[%clk 0:03:01.6]} 13... Qc7 {[%clk 0:02:54.9]} 14.
Ne3 {[%clk 0:03:01.2]} 14... Bf8 {[%clk 0:02:53.2]} 15. Nd2 {[%clk 0:02:59.6]}
15... Nd5 {[%clk 0:02:39.2]} 16. Bf3 {[%clk 0:02:49.6]} 16... N7f6 {[%clk
0:02:36.3]} 17. c4 {[%clk 0:02:40.5]} 17... Nb4 {[%clk 0:02:31]} 18. Qb3 {[%clk
0:02:36.9]} 18... a5 {[%clk 0:02:28.6]} 19. Rac1 {[%clk 0:02:37]} 19... Bxf3
{[%clk 0:02:26]} 20. Nxf3 {[%clk 0:02:37.9]} 20... Qb7 {[%clk 0:02:24.3]} 21.
Rfe1 {[%clk 0:02:25.2]} 21... Rac8 {[%clk 0:02:23.5]} 22. Nd2 {[%clk 0:02:08.4]}
22... d5 {[%clk 0:02:16.3]} 23. cxd5 {[%clk 0:01:53.5]} 23... Nfxd5 {[%clk
0:02:15.7]} 24. Ndc4 {[%clk 0:01:41]} 24... Nxe3 {[%clk 0:02:07.1]} 25. fxe3
{[%clk 0:01:41.9]} 25... Qd5 {[%clk 0:02:00.4]} 26. Rc3 {[%clk 0:01:35.9]} 26...
Rc6 {[%clk 0:01:54]} 27. Nd2 {[%clk 0:01:13.2]} 27... Rec8 {[%clk 0:01:45.4]}
28. Rec1 {[%clk 0:01:13.9]} 28... Qd7 {[%clk 0:01:07.5]} 29. Nf3 {[%clk
0:01:04.4]} 29... f6 {[%clk 0:00:37.4]} 30. Bg3 {[%clk 0:01:04.9]} 30... Nd5
{[%clk 0:00:34.5]} 31. Rxc6 {[%clk 0:01:04.5]} 31... Rxc6 {[%clk 0:00:35.4]} 32.
Re1 {[%clk 0:01:00.9]} 32... Nb4 {[%clk 0:00:30.2]} 33. e4 {[%clk 0:00:56]}
33... Rc8 {[%clk 0:00:25.7]} 34. Rd1 {[%clk 0:00:52.8]} 34... Bd6 {[%clk
0:00:17.2]} 35. Bf2 {[%clk 0:00:45.7]} 35... Bc7 {[%clk 0:00:08.2]} 36. d5
{[%clk 0:00:46.1]} 36... exd5 {[%clk 0:00:08.1]} 37. exd5 {[%clk 0:00:47]} 37...
Qf7 {[%clk 0:00:07.9]} 38. Kh1 {[%clk 0:00:27]} 38... Rd8 {[%clk 0:00:08.1]} 39.
Qc4 {[%clk 0:00:26]} 39... Rxd5 {[%clk 0:00:07.8]} 40. Re1 {[%clk 0:00:23.3]}
40... Rd8 {[%clk 0:00:05.4]} 41. Qe4 {[%clk 0:00:23.8]} 41... h6 {[%clk
0:00:05]} 42. Nh4 {[%clk 0:00:24]} 42... Nc6 {[%clk 0:00:03]} 43. Ng6 {[%clk
0:00:24.5]} 43... Ne5 {[%clk 0:00:02.8]} 44. Nf4 {[%clk 0:00:24]} 44... Rc8
{[%clk 0:00:02.4]} 45. Bd4 {[%clk 0:00:24.6]} 45... Re8 {[%clk 0:00:02.6]} 46.
Qf5 {[%clk 0:00:24.5]} 46... Bd6 {[%clk 0:00:02.9]} 47. Bc3 {[%clk 0:00:24.9]}
47... Nc4 {[%clk 0:00:03.1]} 48. Rd1 {[%clk 0:00:25.3]} 48... Bxf4 {[%clk
0:00:02.4]} 49. Qxf4 {[%clk 0:00:24.7]} 49... Ne5 {[%clk 0:00:03.3]} 50. Rf1
{[%clk 0:00:24.7]} 50... Ng6 {[%clk 0:00:03.5]} 51. Qf5 {[%clk 0:00:25.1]} 51...
Ne5 {[%clk 0:00:03.7]} 52. Qe4 {[%clk 0:00:25.5]} 52... Qe6 {[%clk 0:00:03.9]}
53. Re1 {[%clk 0:00:26]} 53... Qe7 {[%clk 0:00:04.3]} 54. Qd5+ {[%clk
0:00:26.3]} 54... Qe6 {[%clk 0:00:04.6]} 55. Qb5 {[%clk 0:00:27.2]} 55... Kf7
{[%clk 0:00:03.9]} 56. Qa6 {[%clk 0:00:26.3]} 56... Re7 {[%clk 0:00:04]} 57. Qb5
{[%clk 0:00:26.6]} 57... Qc4 {[%clk 0:00:03.6]} 58. Rxe5 {[%clk 0:00:24.5]}
58... Qxb5 {[%clk 0:00:02.8]} 59. Rxb5 {[%clk 0:00:25.4]} 59... Re6 {[%clk
0:00:03.3]} 60. Bd4 {[%clk 0:00:25.6]} 1-0

[Event "*** Titled Tuesday Blitz"]
[Site "Chess.com"]
[Date "2021.03.02"]
[Round "5"]
[White "GadimbayliA"]
[Black "PelinGorki"]
[Result "1/2-1/2"]
[WhiteElo "2803"]
[BlackElo "2548"]
[TimeControl "180+1"]
[EndTime "10:56:16 PST"]
[Termination "Game drawn by repetition"]

1. e4 {[%clk 0:03:00.9]} 1... d6 {[%clk 0:03:00.2]} 2. d4 {[%clk 0:03:01.1]}
2... Nf6 {[%clk 0:03:00.8]} 3. Nc3 {[%clk 0:03:01.8]} 3... c6 {[%clk 0:03:00.8]}
4. Nf3 {[%clk 0:03:01.8]} 4... Bg4 {[%clk 0:03:00.9]} 5. Be2 {[%clk 0:03:02]}
5... e6 {[%clk 0:03:00.7]} 6. O-O {[%clk 0:03:02.5]} 6... Be7 {[%clk 0:03:01.1]}
7. Be3 {[%clk 0:03:03.2]} 7... d5 {[%clk 0:03:01.4]} 8. e5 {[%clk 0:03:02.6]}
8... Nfd7 {[%clk 0:03:01.3]} 9. Nb1 {[%clk 0:03:02.1]} 9... c5 {[%clk 0:03:00]}
10. c3 {[%clk 0:03:02.6]} 10... Nc6 {[%clk 0:03:00.1]} 11. Nbd2 {[%clk
0:03:03.2]} 11... O-O {[%clk 0:03:00]} 12. h3 {[%clk 0:03:02.2]} 12... Bh5
{[%clk 0:02:59.2]} 13. Nh2 {[%clk 0:02:51.3]} 13... Bg6 {[%clk 0:02:55.5]} 14.
f4 {[%clk 0:02:51]} 14... f6 {[%clk 0:02:55.4]} 15. Bg4 {[%clk 0:02:50.3]} 15...
Bf7 {[%clk 0:02:52.3]} 16. Qe2 {[%clk 0:02:46.1]} 16... Qb6 {[%clk 0:02:49.6]}
17. Nb3 {[%clk 0:02:37.5]} 17... cxd4 {[%clk 0:02:43]} 18. cxd4 {[%clk
0:02:34.4]} 18... Rac8 {[%clk 0:02:42.1]} 19. Rad1 {[%clk 0:02:34.8]} 19... Nb4
{[%clk 0:02:29.3]} 20. Nc1 {[%clk 0:02:23.1]} 20... Rc2 {[%clk 0:02:19.3]} 21.
Rd2 {[%clk 0:02:23]} 21... Rfc8 {[%clk 0:02:18.8]} 22. a3 {[%clk 0:02:06.3]}
22... Rxc1 {[%clk 0:02:00.3]} 23. axb4 {[%clk 0:01:59.7]} 23... Bxb4 {[%clk
0:01:55.9]} 24. Rdd1 {[%clk 0:01:56.3]} 24... R1c2 {[%clk 0:01:56.1]} 25. Qd3
{[%clk 0:01:37]} 25... f5 {[%clk 0:01:55]} 26. Bf3 {[%clk 0:01:34.3]} 26... Nf8
{[%clk 0:01:22.6]} 27. Rf2 {[%clk 0:01:20.3]} 27... Rxf2 {[%clk 0:01:20.5]} 28.
Bxf2 {[%clk 0:01:21.2]} 28... Be8 {[%clk 0:01:20.7]} 29. g4 {[%clk 0:01:14]}
29... Ba4 {[%clk 0:01:15.3]} 30. Ra1 {[%clk 0:01:07.4]} 30... Bc2 {[%clk
0:01:13.5]} 31. Qe2 {[%clk 0:01:07.4]} 31... Be4 {[%clk 0:01:07.8]} 32. Bxe4
{[%clk 0:01:04.9]} 32... fxe4 {[%clk 0:01:00.2]} 33. f5 {[%clk 0:01:05.8]} 33...
Be7 {[%clk 0:00:48.6]} 34. Be3 {[%clk 0:01:02.6]} 34... a6 {[%clk 0:00:43.3]}
35. Nf1 {[%clk 0:01:00.8]} 35... Qb3 {[%clk 0:00:42.6]} 36. Qf2 {[%clk
0:00:38.8]} 36... Rc2 {[%clk 0:00:39.1]} 37. Nd2 {[%clk 0:00:39.2]} 37... Qxb2
{[%clk 0:00:36]} 38. Rf1 {[%clk 0:00:39.2]} 38... Bb4 {[%clk 0:00:08]} 39. fxe6
{[%clk 0:00:37.7]} 39... Qa3 {[%clk 0:00:04.4]} 40. Qf7+ {[%clk 0:00:31.1]}
40... Kh8 {[%clk 0:00:04.1]} 41. Kh1 {[%clk 0:00:24.3]} 41... h6 {[%clk
0:00:03]} 42. Re1 {[%clk 0:00:20.5]} 42... Rxd2 {[%clk 0:00:01.4]} 43. Bxd2
{[%clk 0:00:17]} 43... Qxh3+ {[%clk 0:00:01.3]} 44. Kg1 {[%clk 0:00:17.3]} 44...
Qg3+ {[%clk 0:00:02]} 45. Kf1 {[%clk 0:00:14.7]} 45... Qh3+ {[%clk 0:00:02.9]}
46. Kf2 {[%clk 0:00:11.2]} 46... Qh2+ {[%clk 0:00:02.9]} 47. Kf1 {[%clk
0:00:11.4]} 47... Qh1+ {[%clk 0:00:02.6]} 48. Kf2 {[%clk 0:00:06.7]} 48... Qh4+
{[%clk 0:00:02.8]} 49. Kf1 {[%clk 0:00:05]} 49... Qh3+ {[%clk 0:00:03.4]} 50.
Kf2 {[%clk 0:00:05.1]} 50... Qh2+ {[%clk 0:00:03.8]} 51. Kf1 {[%clk 0:00:05.2]}
51... Qh1+ {[%clk 0:00:04]} 52. Kf2 {[%clk 0:00:05.6]} 52... Qh4+ {[%clk
0:00:03.6]} 53. Kf1 {[%clk 0:00:03]} 53... Qh3+ {[%clk 0:00:02.1]} 1/2-1/2

[Event "*** Titled Tuesday Blitz"]
[Site "Chess.com"]
[Date "2021.03.02"]
[Round "5"]
[White "BigAl"]
[Black "Margency"]
[Result "0-1"]
[WhiteElo "2526"]
[BlackElo "2696"]
[TimeControl "180+1"]
[EndTime "10:56:17 PST"]
[Termination "Margency won on time"]

1. Nf3 {[%clk 0:03:00.9]} 1... Nf6 {[%clk 0:02:58.7]} 2. g3 {[%clk 0:03:01]}
2... g6 {[%clk 0:02:59.2]} 3. Bg2 {[%clk 0:03:01.7]} 3... Bg7 {[%clk 0:02:59.8]}
4. O-O {[%clk 0:03:02.3]} 4... d5 {[%clk 0:03:00.4]} 5. d3 {[%clk 0:03:03.2]}
5... O-O {[%clk 0:03:00.2]} 6. Nbd2 {[%clk 0:03:03.9]} 6... c5 {[%clk
0:03:00.5]} 7. e4 {[%clk 0:03:04.3]} 7... Nc6 {[%clk 0:03:01.1]} 8. c3 {[%clk
0:03:04.9]} 8... Qc7 {[%clk 0:02:53.2]} 9. Re1 {[%clk 0:03:01.6]} 9... Rd8
{[%clk 0:02:42.4]} 10. Qe2 {[%clk 0:02:36.5]} 10... b6 {[%clk 0:02:33.7]} 11.
exd5 {[%clk 0:02:24]} 11... Nxd5 {[%clk 0:02:33.4]} 12. Nc4 {[%clk 0:02:24.3]}
12... Bb7 {[%clk 0:02:27.2]} 13. h4 {[%clk 0:02:22.9]} 13... h6 {[%clk
0:02:22.2]} 14. h5 {[%clk 0:02:16.8]} 14... g5 {[%clk 0:02:22]} 15. Nxg5 {[%clk
0:02:06.3]} 15... hxg5 {[%clk 0:02:21.3]} 16. Bxg5 {[%clk 0:02:06.3]} 16... Nf6
{[%clk 0:02:08.3]} 17. h6 {[%clk 0:02:03.3]} 17... Bh8 {[%clk 0:02:06.7]} 18.
Rad1 {[%clk 0:01:57.2]} 18... Rd7 {[%clk 0:01:59]} 19. Ne3 {[%clk 0:01:39.3]}
19... Qe5 {[%clk 0:01:31.4]} 20. f4 {[%clk 0:01:36.4]} 20... Qe6 {[%clk
0:01:25.7]} 21. Qf2 {[%clk 0:01:25.8]} 21... Qxa2 {[%clk 0:01:11.6]} 22. Nc4
{[%clk 0:01:18.7]} 22... Qb3 {[%clk 0:01:03.5]} 23. Qe2 {[%clk 0:01:02.3]} 23...
Rad8 {[%clk 0:01:01.7]} 24. Ne5 {[%clk 0:00:54.4]} 24... Nxe5 {[%clk 0:01:00.6]}
25. fxe5 {[%clk 0:00:51.5]} 25... Nh7 {[%clk 0:00:58.6]} 26. Bxb7 {[%clk
0:00:42.8]} 26... Rxb7 {[%clk 0:00:56.8]} 27. Bf4 {[%clk 0:00:28.7]} 27... Qe6
{[%clk 0:00:50.4]} 28. Qe4 {[%clk 0:00:28.6]} 28... Rbd7 {[%clk 0:00:50]} 29.
Re2 {[%clk 0:00:29]} 29... Nf8 {[%clk 0:00:49]} 30. Rh2 {[%clk 0:00:27.4]} 30...
Ng6 {[%clk 0:00:48.6]} 31. h7+ {[%clk 0:00:27.7]} 31... Kf8 {[%clk 0:00:48.9]}
32. Bh6+ {[%clk 0:00:27.9]} 32... Ke8 {[%clk 0:00:49.3]} 33. Re1 {[%clk
0:00:26.7]} 33... Rxd3 {[%clk 0:00:47.1]} 34. Rhe2 {[%clk 0:00:24.3]} 34...
Rxg3+ {[%clk 0:00:45]} 35. Kf2 {[%clk 0:00:21.8]} 35... Rh3 {[%clk 0:00:31.5]}
36. Kg2 {[%clk 0:00:20.6]} 36... Rxh6 {[%clk 0:00:31.2]} 37. Rf2 {[%clk
0:00:20]} 37... Qh3+ {[%clk 0:00:30.3]} 38. Kg1 {[%clk 0:00:19]} 38... Rxh7
{[%clk 0:00:30.9]} 39. Qc6+ {[%clk 0:00:13.1]} 39... Qd7 {[%clk 0:00:27.8]} 40.
Qf3 {[%clk 0:00:12.1]} 40... Nxe5 {[%clk 0:00:25.1]} 41. Qe4 {[%clk 0:00:09.8]}
41... Qh3 {[%clk 0:00:23.6]} 42. Rg2 {[%clk 0:00:08.7]} 42... Nf3+ {[%clk
0:00:16.4]} 43. Kf2 {[%clk 0:00:09.1]} 43... Qh4+ {[%clk 0:00:16.8]} 44. Kxf3
{[%clk 0:00:08.9]} 44... Qxe4+ {[%clk 0:00:14.9]} 45. Rxe4 {[%clk 0:00:09.2]}
45... Rd6 {[%clk 0:00:14.8]} 46. Rg8+ {[%clk 0:00:06.4]} 46... Kd7 {[%clk
0:00:15.1]} 47. Ra8 {[%clk 0:00:07.3]} 47... Bf6 {[%clk 0:00:12.6]} 48. Rxa7+
{[%clk 0:00:07.3]} 48... Kc6 {[%clk 0:00:13]} 49. Ra8 {[%clk 0:00:05.9]} 49...
Rd2 {[%clk 0:00:12.8]} 50. Rc8+ {[%clk 0:00:03.8]} 50... Kb7 {[%clk 0:00:13]}
51. Re8 {[%clk 0:00:04.7]} 51... Rh3+ {[%clk 0:00:12.6]} 52. Kg4 {[%clk
0:00:05.1]} 52... Rhh2 {[%clk 0:00:12.7]} 53. b4 {[%clk 0:00:04.2]} 53... cxb4
{[%clk 0:00:11.7]} 54. cxb4 {[%clk 0:00:03.8]} 54... Rhe2 {[%clk 0:00:11.7]} 55.
Rf4 {[%clk 0:00:03.1]} 55... Rb2 {[%clk 0:00:11.2]} 56. Kh5 {[%clk 0:00:03.5]}
56... Rg2 {[%clk 0:00:11.1]} 57. Rf8 {[%clk 0:00:02.3]} 57... Rg5+ {[%clk
0:00:10.9]} 58. Kh6 {[%clk 0:00:02.3]} 58... Rh2+ {[%clk 0:00:10.9]} 0-1

[Event "*** Titled Tuesday Blitz"]
[Site "Chess.com"]
[Date "2021.03.02"]
[Round "5"]
[White "Brave_spirit12"]
[Black "anon102030"]
[Result "0-1"]
[WhiteElo "2517"]
[BlackElo "2705"]
[TimeControl "180+1"]
[EndTime "10:56:17 PST"]
[Termination "anon102030 won on time"]

1. e4 {[%clk 0:03:00.9]} 1... e5 {[%clk 0:02:56.5]} 2. Nf3 {[%clk 0:02:56.9]}
2... Nc6 {[%clk 0:02:57]} 3. Bc4 {[%clk 0:02:50.4]} 3... Bc5 {[%clk 0:02:56.3]}
4. c3 {[%clk 0:02:49.7]} 4... Nf6 {[%clk 0:02:56]} 5. d4 {[%clk 0:02:49.4]} 5...
exd4 {[%clk 0:02:56.2]} 6. cxd4 {[%clk 0:02:50.3]} 6... Bb4+ {[%clk 0:02:56.4]}
7. Bd2 {[%clk 0:02:49.7]} 7... Bxd2+ {[%clk 0:02:55.7]} 8. Nbxd2 {[%clk
0:02:50.6]} 8... d5 {[%clk 0:02:54.7]} 9. exd5 {[%clk 0:02:48.9]} 9... Nxd5
{[%clk 0:02:55.6]} 10. O-O {[%clk 0:02:48.9]} 10... O-O {[%clk 0:02:54.2]} 11.
Re1 {[%clk 0:02:46.9]} 11... Nb6 {[%clk 0:02:52.3]} 12. Bb3 {[%clk 0:02:43.1]}
12... Nxd4 {[%clk 0:02:46.5]} 13. Nxd4 {[%clk 0:02:43]} 13... Qxd4 {[%clk
0:02:46.6]} 14. Qf3 {[%clk 0:02:42.3]} 14... Bg4 {[%clk 0:02:26.1]} 15. Qg3
{[%clk 0:02:22.2]} 15... Qxd2 {[%clk 0:02:11.5]} 16. Qxg4 {[%clk 0:02:20.2]}
16... Rfe8 {[%clk 0:02:09.3]} 17. Red1 {[%clk 0:02:13]} 17... Qxb2 {[%clk
0:02:02.9]} 18. Qf3 {[%clk 0:02:12.1]} 18... Re7 {[%clk 0:01:52.6]} 19. Qxb7
{[%clk 0:02:07.8]} 19... Rae8 {[%clk 0:01:52.7]} 20. h3 {[%clk 0:02:05]} 20...
a5 {[%clk 0:01:47.6]} 21. Rab1 {[%clk 0:01:57]} 21... Qe5 {[%clk 0:01:32.4]} 22.
Re1 {[%clk 0:01:54.7]} 22... Qxe1+ {[%clk 0:01:19.4]} 23. Rxe1 {[%clk
0:01:55.6]} 23... Rxe1+ {[%clk 0:01:19.2]} 24. Kh2 {[%clk 0:01:56.3]} 24... R1e7
{[%clk 0:01:19.7]} 25. Qc6 {[%clk 0:01:53.9]} 25... Rd8 {[%clk 0:01:12]} 26. h4
{[%clk 0:01:46.8]} 26... h5 {[%clk 0:01:06.7]} 27. Qb5 {[%clk 0:01:44.5]} 27...
a4 {[%clk 0:00:58.2]} 28. Bxa4 {[%clk 0:01:31.1]} 28... Re4 {[%clk 0:00:50]} 29.
Bb3 {[%clk 0:01:24]} 29... Rxh4+ {[%clk 0:00:49.6]} 30. Kg3 {[%clk 0:01:23]}
30... Rg4+ {[%clk 0:00:49.5]} 31. Kh2 {[%clk 0:01:21.1]} 31... g6 {[%clk
0:00:42.2]} 32. f3 {[%clk 0:01:12.4]} 32... Rgd4 {[%clk 0:00:30.6]} 33. Qc6
{[%clk 0:01:11.2]} 33... Nd5 {[%clk 0:00:25.8]} 34. a4 {[%clk 0:00:58.5]} 34...
Rd2 {[%clk 0:00:21.7]} 35. Bxd5 {[%clk 0:00:26.7]} 35... R8xd5 {[%clk
0:00:22.6]} 36. Qxc7 {[%clk 0:00:26.3]} 36... Rg5 {[%clk 0:00:19.8]} 37. Qc8+
{[%clk 0:00:15.4]} 37... Kh7 {[%clk 0:00:19.6]} 38. Qh3 {[%clk 0:00:11.6]} 38...
Ra2 {[%clk 0:00:16.2]} 39. f4 {[%clk 0:00:06.7]} 39... Rg4 {[%clk 0:00:13.3]}
40. Qb3 {[%clk 0:00:04.3]} 40... Rgxg2+ {[%clk 0:00:10]} 41. Kh1 {[%clk
0:00:02.1]} 41... Rh2+ {[%clk 0:00:08.4]} 42. Kg1 {[%clk 0:00:02]} 42... Rhg2+
{[%clk 0:00:04.7]} 43. Kh1 {[%clk 0:00:02]} 43... Rh2+ {[%clk 0:00:04.5]} 44.
Kg1 {[%clk 0:00:02.2]} 44... Kg7 {[%clk 0:00:05.3]} 45. Qc3+ {[%clk 0:00:02.3]}
45... Kf8 {[%clk 0:00:05.9]} 46. Qc8+ {[%clk 0:00:02.1]} 46... Ke7 {[%clk
0:00:06.6]} 47. Qc7+ {[%clk 0:00:02.3]} 47... Ke6 {[%clk 0:00:05.8]} 48. Qe5+
{[%clk 0:00:02.7]} 48... Kd7 {[%clk 0:00:06.1]} 49. Qd5+ {[%clk 0:00:03.2]}
49... Kc8 {[%clk 0:00:06.2]} 50. a5 {[%clk 0:00:03.6]} 50... Rhd2 {[%clk
0:00:04.5]} 51. Qc6+ {[%clk 0:00:03.7]} 51... Kd8 {[%clk 0:00:05.1]} 52. Qb6+
{[%clk 0:00:03.8]} 52... Ke7 {[%clk 0:00:05.5]} 53. Qb4+ {[%clk 0:00:03.6]}
53... Kf6 {[%clk 0:00:04.1]} 54. Qc3+ {[%clk 0:00:03.8]} 54... Kf5 {[%clk
0:00:03.6]} 55. Qe5+ {[%clk 0:00:03.9]} 55... Kg4 {[%clk 0:00:04.3]} 56. Qg5+
{[%clk 0:00:01.5]} 56... Kf3 {[%clk 0:00:04.8]} 0-1

[Event "*** Titled Tuesday Blitz"]
[Site "Chess.com"]
[Date "2021.03.02"]
[Round "5"]
[White "korkmaz16"]
[Black "GarciaIsaac"]
[Result "1-0"]
[WhiteElo "2411"]
[BlackElo "2561"]
[TimeControl "180+1"]
[EndTime "10:56:24 PST"]
[Termination "korkmaz16 won on time"]

1. e4 {[%clk 0:03:00.9]} 1... c5 {[%clk 0:02:59.7]} 2. Nf3 {[%clk 0:03:00.5]}
2... Nc6 {[%clk 0:02:59.6]} 3. d4 {[%clk 0:03:00.2]} 3... cxd4 {[%clk
0:03:00.1]} 4. Nxd4 {[%clk 0:03:00]} 4... Nf6 {[%clk 0:02:59.6]} 5. Nc3 {[%clk
0:02:59.1]} 5... e5 {[%clk 0:02:59.4]} 6. Ndb5 {[%clk 0:02:58.2]} 6... d6 {[%clk
0:02:59.3]} 7. Bg5 {[%clk 0:02:55.8]} 7... a6 {[%clk 0:02:59.3]} 8. Na3 {[%clk
0:02:55]} 8... b5 {[%clk 0:02:59.1]} 9. Nd5 {[%clk 0:02:54]} 9... Be7 {[%clk
0:02:58.2]} 10. Bxf6 {[%clk 0:02:54]} 10... Bxf6 {[%clk 0:02:53.8]} 11. c3
{[%clk 0:02:51.1]} 11... O-O {[%clk 0:02:53]} 12. Nc2 {[%clk 0:02:49.9]} 12...
Bg5 {[%clk 0:02:49.7]} 13. a4 {[%clk 0:02:41.6]} 13... bxa4 {[%clk 0:02:36.6]}
14. Rxa4 {[%clk 0:02:39.3]} 14... a5 {[%clk 0:02:36.7]} 15. Bc4 {[%clk
0:02:16.7]} 15... Rb8 {[%clk 0:02:27.3]} 16. Ra2 {[%clk 0:02:09.3]} 16... Kh8
{[%clk 0:02:19.8]} 17. Nce3 {[%clk 0:02:02.5]} 17... Bxe3 {[%clk 0:02:04.4]} 18.
Nxe3 {[%clk 0:01:59.5]} 18... Ne7 {[%clk 0:01:48.6]} 19. O-O {[%clk 0:01:52.4]}
19... f5 {[%clk 0:01:45.4]} 20. exf5 {[%clk 0:01:48]} 20... Nxf5 {[%clk
0:01:45.3]} 21. Nxf5 {[%clk 0:01:13.3]} 21... Bxf5 {[%clk 0:01:44.9]} 22. Qd2
{[%clk 0:01:13.9]} 22... Qb6 {[%clk 0:01:40.7]} 23. Rfa1 {[%clk 0:01:04.6]}
23... h6 {[%clk 0:01:31.2]} 24. h3 {[%clk 0:01:00.4]} 24... Rf6 {[%clk
0:01:18.8]} 25. Rxa5 {[%clk 0:00:51.3]} 25... Qxb2 {[%clk 0:01:08]} 26. Qe3
{[%clk 0:00:40]} 26... Rbf8 {[%clk 0:00:54.3]} 27. R5a2 {[%clk 0:00:25.8]} 27...
Qb8 {[%clk 0:00:49.6]} 28. Bd5 {[%clk 0:00:24.5]} 28... Qb5 {[%clk 0:00:38.9]}
29. c4 {[%clk 0:00:22.1]} 29... Qb4 {[%clk 0:00:34.1]} 30. Ra8 {[%clk
0:00:18.9]} 30... Qc5 {[%clk 0:00:24.5]} 31. Qxc5 {[%clk 0:00:18]} 31... dxc5
{[%clk 0:00:25]} 32. R1a5 {[%clk 0:00:15.7]} 32... Rxa8 {[%clk 0:00:15]} 33.
Rxa8+ {[%clk 0:00:15.4]} 33... Kh7 {[%clk 0:00:13.5]} 34. Ra5 {[%clk 0:00:15.7]}
34... Rg6 {[%clk 0:00:10.8]} 35. h4 {[%clk 0:00:12.1]} 35... Rg4 {[%clk
0:00:08.3]} 36. g3 {[%clk 0:00:11.6]} 36... Rd4 {[%clk 0:00:07.8]} 37. Rxc5
{[%clk 0:00:11.2]} 37... e4 {[%clk 0:00:03.6]} 38. Rc7 {[%clk 0:00:05.1]} 38...
Bg4 {[%clk 0:00:03.8]} 39. Re7 {[%clk 0:00:03.6]} 39... Bf3 {[%clk 0:00:03.9]}
40. Kh2 {[%clk 0:00:03.6]} 40... Rd1 {[%clk 0:00:03.4]} 41. g4 {[%clk
0:00:03.9]} 41... Rh1+ {[%clk 0:00:03.7]} 42. Kg3 {[%clk 0:00:04.3]} 42... Rg1+
{[%clk 0:00:04.6]} 43. Kf4 {[%clk 0:00:04.8]} 43... Rxg4+ {[%clk 0:00:05]} 44.
Ke3 {[%clk 0:00:05.4]} 44... Rg1 {[%clk 0:00:04]} 45. c5 {[%clk 0:00:03.1]}
45... Re1+ {[%clk 0:00:03.4]} 46. Kf4 {[%clk 0:00:03.4]} 46... Rc1 {[%clk
0:00:03]} 47. c6 {[%clk 0:00:03]} 47... Rc5 {[%clk 0:00:03.1]} 48. c7 {[%clk
0:00:02.6]} 48... Kg6 {[%clk 0:00:02.4]} 49. Bxe4+ {[%clk 0:00:02.3]} 49... Bxe4
{[%clk 0:00:02]} 50. Kxe4 {[%clk 0:00:03.2]} 50... Kf6 {[%clk 0:00:02.2]} 51.
Rd7 {[%clk 0:00:03.6]} 1-0